bitfinex-derivatives/quotes_BTCF0:USTF0_20210404
["timestamp","ask_amount","ask_price","bid_price","bid_amount"]
[1617507216827,3.86570655,57264.0,57263.0,1.10725655]
[1617507218731,3.86570655,57264.0,57263.0,0.10725655]
[1617507218930,3.86570655,57264.0,57263.0,1.10725655]
[1617507220031,3.86570655,57264.0,57263.0,0.10725655]
[1617507221032,4.06570655,57264.0,57263.0,0.10725655]
[1617507231546,3.86570655,57264.0,57263.0,0.10725655]
[1617507233145,3.86570655,57264.0,57252.0,0.10725655]
[1617507235249,0.10725655,57253.0,57252.0,0.10725655]
[1617507237953,3.35475655,57253.0,57252.0,0.10725655]
[1617507245562,3.35475655,57253.0,57252.0,0.21155655]
[1617507245761,3.35475655,57253.0,57252.0,1.21155655]
[1617507247465,3.2475,57253.0,57252.0,1.21155655]
[1617507250969,3.2475,57253.0,57252.0,0.21155655]
[1617507251171,3.2475,57253.0,57252.0,1.21155655]
[1617507263487,3.35253,57253.0,57252.0,1.21155655]
[1617507265490,0.10503,57253.0,57252.0,1.21155655]
[1617507266793,0.10503,57253.0,57252.0,0.21155655]
[1617507266794,3.04533,57253.0,57252.0,0.21155655]
[1617507266993,3.04533,57253.0,57252.0,0.10725655]
[1617507268197,3.04533,57253.0,57242.0,1.0]
[1617507268394,0.10503,57253.0,57242.0,1.0]
[1617507268594,0.14938,57253.0,57242.0,1.0]
[1617507268795,3.0144,57243.0,57242.0,1.0]
[1617507269595,3.12165655,57243.0,57242.0,0.10725655]
[1617507269794,3.12165655,57243.0,57240.0,1.0]
[1617507269995,3.12165655,57243.0,57237.0,0.56715942]
[1617507270494,3.12165655,57243.0,57229.0,0.56806654]
[1617507270695,3.32165655,57243.0,57229.0,0.56806654]
[1617507271096,3.32165655,57243.0,57222.0,1.0]
[1617507271097,0.44987563,57241.0,57225.0,0.56847412]
[1617507271294,0.2,57240.0,57225.0,0.56847412]
[1617507271495,0.2,57240.0,57223.0,0.56876953]
[1617507271496,0.10725655,57226.0,57223.0,0.56876953]
[1617507271695,0.22355655,57226.0,57223.0,0.56876953]
[1617507271896,0.22355655,57226.0,57222.0,1.0]
[1617507272998,0.22355655,57226.0,57221.0,1.0]
[1617507273399,0.22355655,57226.0,57218.0,0.10725655]
[1617507273400,0.22355655,57226.0,57219.0,1.56914856]
[1617507273799,0.22355655,57226.0,57219.0,1.0]
[1617507274299,0.22355655,57226.0,57220.0,0.56990251]
[1617507274698,0.22355655,57226.0,57221.0,0.56989526]
[1617507276006,0.22355655,57226.0,57219.0,1.0]
[1617507277602,0.10725655,57220.0,57219.0,1.0]
[1617507278204,0.10725655,57220.0,57218.0,0.10725655]
[1617507278606,0.10725655,57220.0,57219.0,1.0]
[1617507279005,0.10725655,57220.0,57219.0,4.4512]
[1617507279806,0.10725655,57220.0,57219.0,4.59456608]
[1617507280205,3.343,57238.0,57219.0,4.59456608]
[1617507280706,3.343,57238.0,57228.0,1.0]
[1617507281307,3.343,57238.0,57229.0,1.0]
[1617507281506,3.343,57238.0,57234.0,1.0]
[1617507282509,3.343,57238.0,57233.0,0.10725655]
[1617507282711,0.1229,57238.0,57233.0,0.10725655]
[1617507282911,0.1229,57238.0,57233.0,2.91065655]
[1617507283615,0.10725655,57234.0,57233.0,2.91065655]
[1617507283812,0.10725655,57234.0,57233.0,3.91065655]
[1617507284915,3.1024,57246.0,57233.0,3.8034]
[1617507285616,0.10725655,57234.0,57233.0,3.91065655]
[1617507285817,0.10725655,57234.0,57233.0,1.10725655]
[1617507286220,3.28135655,57234.0,57233.0,0.10725655]
[1617507286418,3.42252655,57234.0,57233.0,0.10725655]
[1617507287519,3.28135655,57234.0,57233.0,0.10725655]
[1617507290322,3.28135655,57234.0,57233.0,1.10725655]
[1617507292822,3.28135655,57234.0,57233.0,0.10725655]
[1617507293023,0.10725655,57234.0,57233.0,0.27134655]
[1617507293223,0.10725655,57234.0,57233.0,3.90554655]
[1617507296528,0.10725655,57234.0,57233.0,1.27134655]
[1617507297127,3.24665655,57234.0,57233.0,1.27134655]
[1617507300632,3.24665655,57234.0,57233.0,0.16409]
[1617507300835,3.39571655,57234.0,57225.0,0.14334614]
[1617507301032,3.39571655,57234.0,57233.0,1.0]
[1617507301233,3.39571655,57234.0,57230.0,1.50626672]
[1617507301635,3.39571655,57234.0,57229.0,1.0]
[1617507301833,0.25631655,57234.0,57229.0,1.0]
[1617507302034,0.25631655,57234.0,57226.0,0.50674412]
[1617507302234,3.1116,57227.0,57226.0,0.50674412]
[1617507302436,3.1116,57227.0,57222.0,0.50722561]
[1617507302836,3.1116,57227.0,57219.0,1.0]
[1617507303739,0.10725655,57220.0,57219.0,1.0]
[1617507303938,0.22639655,57220.0,57219.0,1.0]
[1617507314653,3.92729655,57220.0,57219.0,1.0]
[1617507315553,0.22639655,57220.0,57219.0,1.0]
[1617507315754,0.10725655,57220.0,57219.0,1.0]
[1617507320262,0.10725655,57220.0,57217.0,0.14336844]
[1617507320462,0.10725655,57220.0,57219.0,1.0]
[1617507321262,0.10725655,57220.0,57219.0,1.13806]
[1617507322863,0.10725655,57220.0,57219.0,1.0]
[1617507323264,0.10725655,57220.0,57219.0,1.50913061]
[1617507324064,0.10725655,57220.0,57219.0,2.08085109]
[1617507325969,0.10725655,57220.0,57219.0,1.50913061]
[1617507326869,0.10725655,57220.0,57219.0,2.08084159]
[1617507328772,0.26693655,57220.0,57219.0,2.08084159]
[1617507328972,0.26693655,57220.0,57219.0,1.08084159]
[1617507329171,0.26693655,57220.0,57217.0,0.14336586]
[1617507329172,3.86823655,57220.0,57218.0,0.57175075]
[1617507329975,3.86823655,57220.0,57209.0,1.57179739]
[1617507330373,3.86823655,57220.0,57209.0,0.57179739]
[1617507330773,3.86823655,57220.0,57210.0,1.0]
[1617507330972,3.86823655,57220.0,57211.0,1.0]
[1617507331874,0.10725655,57212.0,57211.0,1.0]
[1617507333076,0.10725655,57212.0,57209.0,0.10725655]
[1617507333276,0.10725655,57212.0,57211.0,1.0]
[1617507347494,0.10725655,57212.0,57211.0,1.66645]
[1617507347694,0.93083523,57236.0,57211.0,1.66645]
[1617507347695,0.44521373,57235.0,57211.0,4.28185]
[1617507347901,0.44521373,57235.0,57211.0,10.28185]
[1617507348095,0.4857,57236.0,57234.0,1.0]
[1617507348295,0.4857,57236.0,57234.0,1.13587]
[1617507348497,0.4857,57236.0,57235.0,1.0]
[1617507349896,0.4857,57236.0,57234.0,0.13587]
[1617507350097,0.10725655,57235.0,57234.0,0.13587]
[1617507350500,0.10725655,57235.0,57234.0,1.13587]
[1617507351000,0.10725655,57235.0,57234.0,3.71377]
[1617507352402,0.10725655,57235.0,57234.0,1.13587]
[1617507362311,0.44795478,57257.0,57234.0,0.13587]
[1617507362511,0.44795478,57257.0,57235.0,6.5]
[1617507362712,0.44772835,57258.0,57235.0,6.5]
[1617507362912,0.44772835,57258.0,57257.0,2.7837]
[1617507363112,0.50876834,57264.0,57257.0,3.94924]
[1617507363113,0.44817683,57264.0,57257.0,3.94924]
[1617507363513,0.44817683,57264.0,57263.0,1.0]
[1617507363712,0.44827275,57265.0,57263.0,1.0]
[1617507364111,0.10725655,57264.0,57263.0,0.10725655]
[1617507364711,0.10725655,57264.0,57263.0,1.10725655]
[1617507367518,0.10725655,57264.0,57263.0,0.10725655]
[1617507367719,0.10725655,57264.0,57263.0,1.10725655]
[1617507368420,0.10725655,57264.0,57263.0,0.10725655]
[1617507368623,0.10725655,57264.0,57263.0,1.10725655]
[1617507372629,0.10725655,57264.0,57263.0,1.27343655]
[1617507376835,0.10725655,57264.0,57263.0,1.10725655]
[1617507377035,0.21823655,57264.0,57263.0,1.10725655]
[1617507377936,0.21823655,57264.0,57234.0,0.56834343]
[1617507378136,3.68553655,57264.0,57257.0,1.0]
[1617507378536,0.10725655,57258.0,57252.0,1.0]
[1617507379136,0.10725655,57258.0,57245.0,0.10725655]
[1617507379137,0.10725655,57258.0,57253.0,1.0]
[1617507379535,0.10725655,57258.0,57257.0,1.0]
[1617507380335,0.10725655,57258.0,57257.0,4.7492]
[1617507380535,0.10725655,57258.0,57257.0,4.85645655]
[1617507391651,0.10725655,57258.0,57257.0,1.10725655]
[1617507392561,3.14605655,57258.0,57257.0,1.10725655]
[1617507395658,3.14605655,57258.0,57257.0,0.10725655]
[1617507395858,3.14605655,57258.0,57257.0,1.10725655]
[1617507396258,3.14605655,57258.0,57257.0,1.25644655]
[1617507396458,0.10725655,57258.0,57257.0,1.25644655]
[1617507397060,0.10725655,57258.0,57257.0,5.01024655]
[1617507420192,0.10725655,57258.0,57257.0,6.51024655]
[1617507422493,0.21829655,57258.0,57257.0,5.01024655]
[1617507422693,0.21829655,57258.0,57257.0,1.14919]
[1617507422893,3.05669655,57258.0,57257.0,1.0]
[1617507424893,3.05669655,57258.0,57257.0,1.10725655]
[1617507427795,0.21829655,57258.0,57257.0,1.10725655]
[1617507427995,0.10725655,57258.0,57257.0,3.88745655]
[1617507437210,0.10725655,57258.0,57257.0,1.10725655]
[1617507437610,3.53625655,57258.0,57257.0,1.10725655]
[1617507441116,3.64525655,57258.0,57257.0,1.10725655]
[1617507442217,3.53625655,57258.0,57257.0,1.10725655]
[1617507445720,3.53625655,57258.0,57257.0,0.10725655]
[1617507445919,3.53625655,57258.0,57257.0,1.10725655]
[1617507446319,0.10725655,57258.0,57257.0,1.10725655]
[1617507446920,0.10725655,57258.0,57257.0,4.52565655]
[1617507447522,0.10725655,57258.0,57257.0,4.66895976]
[1617507456432,0.45004315,57265.0,57257.0,4.66895976]
[1617507456833,0.4883,57268.0,57258.0,0.14329979]
[1617507456834,0.45004058,57266.0,57258.0,0.14329979]
[1617507457035,0.45004058,57266.0,57265.0,0.10725655]
[1617507457433,0.45004058,57266.0,57265.0,1.10725655]
[1617507461739,0.45004058,57266.0,57265.0,4.53195655]
[1617507462741,0.45005919,57267.0,57265.0,4.53195655]
[1617507463142,0.45005919,57267.0,57265.0,3.53195655]
[1617507463542,0.45005919,57267.0,57266.0,1.0]
[1617507464045,0.4883,57268.0,57266.0,1.0]
[1617507464444,0.4883,57268.0,57267.0,4.7575]
[1617507464645,0.4883,57268.0,57267.0,4.92482]
[1617507468552,0.48762167,57268.0,57267.0,4.92482]
[1617507472252,0.48762167,57268.0,57267.0,1.16732]
[1617507483067,0.10725655,57277.0,57267.0,1.16732]
[1617507483269,0.10725655,57277.0,57276.0,2.69785655]
[1617507483468,0.10725655,57277.0,57276.0,3.69785655]
[1617507484869,0.10725655,57277.0,57276.0,1.10725655]
[1617507485269,3.09205655,57277.0,57276.0,1.10725655]
[1617507486571,0.10725655,57277.0,57276.0,1.10725655]
[1617507487272,0.10725655,57277.0,57276.0,4.21905655]
[1617507493890,0.10725655,57277.0,57276.0,3.21905655]
[1617507494306,0.10725655,57277.0,57276.0,4.21905655]
[1617507494482,0.44885506,57280.0,57276.0,4.21905655]
[1617507494683,0.44884726,57286.0,57276.0,4.21905655]
[1617507494883,0.44884726,57286.0,57279.0,1.0]
[1617507495083,0.44884067,57288.0,57279.0,1.0]
[1617507495282,0.44884067,57288.0,57285.0,1.0]
[1617507495484,0.10725655,57287.0,57276.0,3.21905655]
[1617507495884,0.5560965,57287.0,57276.0,0.10725655]
[1617507496083,0.5560965,57287.0,57286.0,1.0]
[1617507496883,0.5560965,57287.0,57286.0,1.15367]
[1617507497285,0.10725655,57287.0,57286.0,1.15367]
[1617507504691,0.10725655,57287.0,57286.0,1.0]
[1617507519714,0.10725655,57287.0,57286.0,4.111]
[1617507519913,0.44843507,57294.0,57286.0,4.111]
[1617507520114,0.4754,57297.0,57286.0,4.111]
[1617507520313,0.4754,57297.0,57293.0,1.0]
[1617507520514,0.4754,57297.0,57296.0,1.0]
[1617507521514,0.4754,57297.0,57296.0,1.10725655]
[1617507521914,3.1209,57297.0,57296.0,1.10725655]
[1617507525724,0.4754,57297.0,57296.0,1.10725655]
[1617507533531,0.58265655,57297.0,57296.0,1.10725655]
[1617507534733,0.58265655,57297.0,57296.0,1.21785655]
[1617507535234,0.4754,57297.0,57296.0,1.21785655]
[1617507536435,0.4754,57297.0,57296.0,0.21785655]
[1617507536636,0.4754,57297.0,57296.0,1.21785655]
[1617507539937,0.4754,57297.0,57296.0,0.21785655]
[1617507540141,0.4754,57297.0,57296.0,1.10725655]
[1617507545045,0.4754,57297.0,57296.0,1.27151655]
[1617507549449,0.4754,57297.0,57296.0,1.10725655]
[1617507554053,0.4754,57297.0,57296.0,0.10725655]
[1617507554454,0.4754,57297.0,57296.0,1.10725655]
[1617507557457,0.10725655,57299.0,57296.0,1.10725655]
[1617507557657,0.44905928,57303.0,57296.0,1.10725655]
[1617507557857,0.44905928,57303.0,57302.0,2.8475]
[1617507558060,0.44905293,57305.0,57302.0,3.8475]
[1617507558460,0.4840535,57306.0,57302.0,2.8475]
[1617507558858,0.4840535,57306.0,57305.0,1.0]
[1617507559059,0.4840535,57306.0,57305.0,1.13981]
[1617507559259,3.0372535,57306.0,57305.0,1.13981]
[1617507559459,2.5882,57306.0,57305.0,1.13981]
[1617507559758,2.5882,57306.0,57305.0,1.24706655]
[1617507566276,2.5882,57306.0,57305.0,1.13981]
[1617507566776,2.5882,57306.0,57305.0,0.13981]
[1617507566975,2.5882,57306.0,57305.0,1.0]
[1617507567976,2.5882,57306.0,57305.0,1.10725655]
[1617507568778,2.5882,57306.0,57305.0,1.24421655]
[1617507569777,2.5532,57306.0,57305.0,1.24421655]
[1617507570979,2.5882,57306.0,57305.0,1.24421655]
[1617507585092,0.035,57306.0,57305.0,1.24421655]
[1617507585493,0.035,57306.0,57305.0,4.72821655]
[1617507590899,0.035,57306.0,57305.0,9.72821655]
[1617507592102,0.4519,57325.0,57305.0,5.22821655]
[1617507592304,0.4519,57325.0,57305.0,2.30209068]
[1617507592503,0.035,57306.0,57305.0,8.30209068]
[1617507592703,0.035,57306.0,57305.0,1.74421655]
[1617507592903,0.035,57306.0,57305.0,5.40661655]
[1617507593103,0.0001,57306.0,57305.0,11.96441401]
[1617507593304,0.44815352,57334.0,57305.0,11.96441401]
[1617507593704,0.44815352,57334.0,57333.0,1.0]
[1617507593904,0.44815352,57334.0,57333.0,1.14398]
[1617507594306,0.44816896,57335.0,57334.0,3.3687]
[1617507594908,0.44817053,57336.0,57334.0,3.3687]
[1617507595106,0.44817053,57336.0,57334.0,4.3687]
[1617507595306,0.44816259,57337.0,57334.0,3.3687]
[1617507595907,0.44816259,57337.0,57336.0,1.0]
[1617507596107,0.50926179,57342.0,57336.0,1.0]
[1617507596306,0.50926179,57342.0,57341.0,0.10725655]
[1617507596506,0.50926179,57342.0,57341.0,1.10725655]
[1617507597007,0.44712758,57342.0,57341.0,1.10725655]
[1617507600114,0.44710404,57343.0,57341.0,1.10725655]
[1617507600515,0.44710404,57343.0,57341.0,0.10725655]
[1617507600714,0.44710404,57343.0,57342.0,1.0]
[1617507602215,0.64710404,57343.0,57334.0,3.3687]
[1617507602417,0.10725655,57335.0,57333.0,0.25123655]
[1617507602617,0.10725655,57335.0,57333.0,0.10725655]
[1617507604218,0.10725655,57335.0,57334.0,1.0]
[1617507604417,0.10725655,57335.0,57334.0,1.16161]
[1617507607522,0.10725655,57335.0,57334.0,0.16161]
[1617507607921,0.10725655,57335.0,57334.0,1.16161]
[1617507608521,0.10725655,57335.0,57334.0,0.16161]
[1617507608723,0.10725655,57335.0,57334.0,1.0]
[1617507620839,0.10725655,57335.0,57334.0,1.12124]
[1617507622137,0.10725655,57335.0,57334.0,1.47007011]
[1617507626043,0.10725655,57335.0,57334.0,0.47007011]
[1617507626241,0.10725655,57335.0,57334.0,0.34883011]
[1617507626441,0.10725655,57335.0,57334.0,1.34883011]
[1617507626642,0.10725655,57335.0,57334.0,0.34883011]
[1617507627843,0.10725655,57335.0,57334.0,0.46299011]
[1617507628043,0.10725655,57335.0,57334.0,1.46299011]
[1617507635055,0.10725655,57335.0,57334.0,0.46299011]
[1617507635254,0.10725655,57335.0,57334.0,1.46299011]
[1617507640865,0.10725655,57335.0,57334.0,0.46299011]
[1617507641266,2.7686,57342.0,57334.0,1.46299011]
[1617507641466,1.94817567,57345.0,57334.0,1.46299011]
[1617507641665,1.94817567,57345.0,57343.0,3.0271]
[1617507641866,1.94817567,57345.0,57343.0,4.0271]
[1617507642767,0.92627392,57346.0,57343.0,4.0271]
[1617507642967,0.92627392,57346.0,57345.0,0.10725655]
[1617507644168,0.4781,57346.0,57345.0,0.10725655]
[1617507644870,0.58535655,57346.0,57345.0,0.10725655]
[1617507646172,1.03444659,57346.0,57345.0,0.10725655]
[1617507646973,1.03444659,57346.0,57345.0,4.13065655]
[1617507647476,0.58535655,57346.0,57345.0,4.13065655]
[1617507651281,0.58535655,57346.0,57345.0,1.10725655]
[1617507651479,3.60185655,57346.0,57345.0,0.10725655]
[1617507651689,3.60185655,57346.0,57345.0,1.10725655]
[1617507652479,3.4946,57346.0,57345.0,1.10725655]
[1617507653379,0.4781,57346.0,57345.0,1.10725655]
[1617507655583,0.4745,57346.0,57345.0,1.10725655]
[1617507662591,0.07,57356.0,57345.0,1.10725655]
[1617507662992,0.07,57356.0,57355.0,1.10725655]
[1617507663192,0.07,57356.0,57355.0,1.24535655]
[1617507672000,0.07,57356.0,57355.0,0.24535655]
[1617507672200,0.07,57356.0,57355.0,1.24535655]
[1617507674502,0.10725655,57360.0,57355.0,1.24535655]
[1617507674702,0.10725655,57360.0,57355.0,1.17535655]
[1617507674903,0.10725655,57360.0,57359.0,1.0]
[1617507689919,0.10725655,57360.0,57355.0,0.03725655]
[1617507690319,0.10725655,57360.0,57359.0,1.0]
[1617507692222,0.10725655,57360.0,57355.0,0.03725655]
[1617507692623,0.10725655,57360.0,57357.0,1.0]
[1617507692822,0.10725655,57360.0,57355.0,0.03725655]
[1617507695425,0.10725655,57360.0,57359.0,1.0]
[1617507696927,0.10725655,57360.0,57355.0,0.03725655]
[1617507697327,0.10725655,57360.0,57359.0,1.0]
[1617507700535,0.10725655,57360.0,57356.0,0.15128]
[1617507700735,0.10725655,57360.0,57355.0,0.03725655]
[1617507700935,0.10725655,57360.0,57355.0,1.03725655]
[1617507701136,0.10725655,57360.0,57355.0,0.03725655]
[1617507701438,0.10725655,57360.0,57358.0,1.0]
[1617507701837,0.10725655,57360.0,57355.0,0.03725655]
[1617507702238,0.10725655,57360.0,57358.0,1.0]
[1617507702438,0.10725655,57360.0,57359.0,1.0]
[1617507702837,0.10725655,57360.0,57355.0,0.03725655]
[1617507704140,0.10725655,57360.0,57359.0,1.0]
[1617507704639,0.10725655,57360.0,57355.0,0.03725655]
[1617507704839,0.10725655,57360.0,57358.0,1.0]
[1617507705040,0.10725655,57360.0,57357.0,1.0]
[1617507705444,0.02018537,57360.0,57356.0,1.0]
[1617507705643,0.02018537,57360.0,57356.0,1.50053767]
[1617507706144,0.02018537,57360.0,57357.0,0.50053221]
[1617507706945,0.02018537,57360.0,57358.0,1.0]
[1617507707346,0.02018537,57360.0,57357.0,0.50053221]
[1617507709751,0.02018537,57360.0,57358.0,1.0]
[1617507709953,0.02018537,57360.0,57359.0,1.0]
[1617507710551,0.02018537,57360.0,57357.0,1.0]
[1617507710752,3.6979,57358.0,57356.0,0.59275584]
[1617507710952,1.5,57357.0,57351.0,0.50130069]
[1617507711554,1.5,57357.0,57348.0,0.50174311]
[1617507711753,0.10725655,57349.0,57348.0,0.50174311]
[1617507711956,0.10725655,57349.0,57346.0,0.50187763]
[1617507712356,0.10725655,57349.0,57345.0,0.50202472]
[1617507713356,0.10725655,57349.0,57343.0,0.50226161]
[1617507714155,1.5,57348.0,57343.0,0.50226161]
[1617507714356,1.62392,57348.0,57343.0,0.50226161]
[1617507714557,1.62392,57348.0,57344.0,0.50257105]
[1617507714956,0.12392,57348.0,57344.0,0.50257105]
[1617507715355,0.12392,57348.0,57343.0,0.50261413]
[1617507715756,0.12392,57348.0,57345.0,0.10725655]
[1617507717760,0.12392,57348.0,57342.0,0.50264333]
[1617507718764,0.12392,57348.0,57343.0,0.50264538]
[1617507719163,0.10725655,57349.0,57343.0,0.50264538]
[1617507719363,0.10725655,57349.0,57341.0,1.0]
[1617507719364,0.10725655,57349.0,57348.0,3.5782]
[1617507720065,0.10725655,57349.0,57348.0,3.67019129]
[1617507723669,1.60725655,57349.0,57348.0,3.67019129]
[1617507726775,1.60725655,57349.0,57348.0,0.09199129]
[1617507726975,5.20535655,57349.0,57348.0,0.09199129]
[1617507727176,5.20535655,57349.0,57342.0,0.50227029]
[1617507727378,1.60725655,57349.0,57342.0,0.50227029]
[1617507727578,3.5998,57343.0,57342.0,0.50227029]
[1617507727777,5.26237,57343.0,57342.0,0.50227029]
[1617507727978,5.36962655,57343.0,57337.0,0.50291745]
[1617507728178,5.56962655,57343.0,57337.0,0.50291745]
[1617507728380,5.56962655,57343.0,57336.0,0.50296483]
[1617507728681,5.56962655,57343.0,57335.0,0.50306886]
[1617507728881,1.96982655,57343.0,57335.0,0.50306886]
[1617507729082,4.60742655,57343.0,57335.0,0.50306886]
[1617507729682,4.40742655,57343.0,57335.0,0.50306886]
[1617507729884,0.10725655,57336.0,57335.0,0.50306886]
[1617507731286,0.10725655,57336.0,57334.0,0.85174708]
[1617507733688,0.10725655,57336.0,57334.0,0.34883011]
[1617507734388,1.5,57335.0,57334.0,0.34883011]
[1617507736490,0.10725655,57336.0,57334.0,0.34883011]
[1617507739191,3.08545655,57336.0,57334.0,0.34883011]
[1617507739391,3.08545655,57336.0,57335.0,1.0]
[1617507740692,3.08545655,57336.0,57334.0,0.34883011]
[1617507741093,3.08545655,57336.0,57335.0,1.0]
[1617507746304,3.08545655,57336.0,57334.0,1.34883011]
[1617507746502,3.08545655,57336.0,57334.0,0.34883011]
[1617507747304,4.58545655,57336.0,57334.0,0.34883011]
[1617507748408,0.10725655,57336.0,57334.0,0.34883011]
[1617507749810,1.60725655,57336.0,57334.0,0.34883011]
[1617507752011,0.10725655,57336.0,57334.0,0.34883011]
[1617507755013,1.5,57335.0,57334.0,0.34883011]
[1617507760215,0.10725655,57336.0,57334.0,0.34883011]
[1617507761417,1.60725655,57336.0,57334.0,0.34883011]
[1617507765725,4.83545655,57336.0,57334.0,0.34883011]
[1617507766828,4.96222655,57336.0,57334.0,0.34883011]
[1617507768933,3.46222655,57336.0,57334.0,0.34883011]
[1617507769133,3.33545655,57336.0,57334.0,0.34883011]
[1617507774843,0.10725655,57336.0,57334.0,0.49393011]
[1617507775043,0.10725655,57336.0,57335.0,3.7221]
[1617507775443,0.10725655,57336.0,57335.0,4.81410583]
[1617507776345,0.10725655,57336.0,57335.0,5.31766968]
[1617507779347,0.10725655,57336.0,57335.0,4.31766968]
[1617507779549,0.10725655,57336.0,57335.0,5.31766968]
[1617507782054,0.10725655,57336.0,57335.0,0.59556968]
[1617507782454,0.10725655,57336.0,57335.0,0.50356385]
[1617507782654,3.20645655,57336.0,57335.0,0.50356385]
[1617507784757,3.20645655,57336.0,57334.0,0.8526556]
[1617507785859,3.20645655,57336.0,57334.0,0.34883011]
[1617507787862,0.10725655,57336.0,57334.0,0.85229872]
[1617507788260,2.9193,57335.0,57334.0,0.85229872]
[1617507788765,2.9193,57335.0,57334.0,0.34883011]
[1617507791766,0.10725655,57336.0,57334.0,0.34883011]
[1617507792968,0.10725655,57336.0,57335.0,0.50366101]
[1617507793167,0.10725655,57336.0,57335.0,1.50366101]
[1617507793568,0.10725655,57336.0,57335.0,0.50366101]
[1617507794168,0.10725655,57336.0,57335.0,1.61091756]
[1617507795369,0.10725655,57336.0,57335.0,0.61091756]
[1617507800176,0.10725655,57336.0,57335.0,0.50366101]
[1617507801279,0.10725655,57336.0,57334.0,0.85214698]
[1617507801778,0.10725655,57336.0,57334.0,0.34883011]
[1617507807583,1.60725655,57336.0,57334.0,0.34883011]
[1617507807986,0.55639894,57336.0,57334.0,0.34883011]
[1617507808386,0.10725655,57336.0,57334.0,0.34883011]
[1617507810388,0.10725655,57336.0,57335.0,2.6096]
[1617507811790,0.55630643,57336.0,57335.0,2.6096]
[1617507812188,0.10725655,57336.0,57335.0,2.6096]
[1617507812390,0.10725655,57336.0,57335.0,2.77755]
[1617507816297,0.10725655,57336.0,57335.0,0.16795]
[1617507817396,3.64675655,57336.0,57335.0,0.16795]
[1617507817596,0.10725655,57336.0,57335.0,2.66778]
[1617507818198,0.10725655,57336.0,57335.0,2.7597841]
[1617507818600,0.10725655,57336.0,57335.0,3.7597841]
[1617507819200,0.10725655,57336.0,57335.0,4.26260114]
[1617507819702,0.10725655,57336.0,57335.0,3.26260114]
[1617507819901,0.10725655,57336.0,57335.0,4.26260114]
[1617507820301,0.10725655,57336.0,57335.0,4.36985769]
[1617507825609,0.10725655,57336.0,57335.0,4.51296393]
[1617507833922,0.10725655,57336.0,57335.0,4.36985769]
[1617507838328,0.10725655,57336.0,57335.0,4.51295925]
[1617507845037,0.10725655,57336.0,57335.0,3.51295925]
[1617507845237,0.10725655,57336.0,57335.0,4.51295925]
[1617507846438,0.10725655,57336.0,57335.0,3.51295925]
[1617507847440,0.10725655,57336.0,57335.0,3.36985769]
[1617507848238,0.10725655,57336.0,57335.0,2.86704065]
[1617507849638,0.10725655,57336.0,57335.0,0.73127928]
[1617507849837,0.10725655,57336.0,57335.0,0.59189928]
[1617507850238,0.10725655,57336.0,57334.0,0.34883011]
[1617507850239,3.79425655,57336.0,57334.0,0.34883011]
[1617507850638,0.10725655,57336.0,57334.0,0.34883011]
[1617507850837,0.10725655,57336.0,57335.0,3.2903]
[1617507851038,2.99645655,57336.0,57335.0,3.2903]
[1617507851437,0.10725655,57336.0,57335.0,3.40382]
[1617507851639,0.10725655,57336.0,57335.0,4.40382]
[1617507852539,0.10725655,57336.0,57335.0,4.51107655]
[1617507855347,0.10725655,57336.0,57335.0,5.00999441]
[1617507857047,0.10725655,57336.0,57335.0,4.51107655]
[1617507857450,0.10725655,57336.0,57335.0,3.40382]
[1617507857647,0.23972655,57336.0,57334.0,1.84753742]
[1617507857851,2.94049851,57335.0,57334.0,0.34883011]
[1617507882692,1.5,57335.0,57334.0,0.34883011]
[1617507883294,2.7,57335.0,57334.0,0.34883011]
[1617507883499,3.65878652,57335.0,57334.0,0.33763011]
[1617507883690,7.15678652,57335.0,57334.0,0.33763011]
[1617507892300,7.15678652,57335.0,57334.0,0.29463011]
[1617507893601,6.198,57335.0,57334.0,0.29463011]
[1617507894102,7.1542681,57335.0,57334.0,0.29463011]
[1617507894304,6.1542681,57335.0,57334.0,0.25263011]
[1617507894503,7.1542681,57335.0,57334.0,0.21073011]
[1617507895107,7.72399983,57335.0,57334.0,0.21073011]
[1617507895505,7.72399983,57335.0,57334.0,0.20970743]
[1617507896605,7.72399983,57335.0,57334.0,0.14000743]
[1617507907317,7.72399983,57335.0,57334.0,0.13898472]
[1617507908518,7.2752881,57335.0,57334.0,0.08568472]
[1617507908919,7.84373302,57335.0,57334.0,0.08568472]
[1617507911321,7.2752881,57335.0,57334.0,0.08568472]
[1617507912322,6.2752881,57335.0,57334.0,0.08568472]
[1617507912522,7.2752881,57335.0,57334.0,0.08568472]
[1617507913125,7.84373084,57335.0,57334.0,0.08568472]
[1617507913524,7.2752881,57335.0,57334.0,0.08568472]
[1617507914328,6.2752881,57335.0,57334.0,0.08568472]
[1617507914528,6.1542681,57335.0,57334.0,0.08568472]
[1617507914729,7.1542681,57335.0,57334.0,0.08568472]
[1617507916031,7.3056481,57335.0,57334.0,0.08568472]
[1617507918333,7.3056481,57335.0,57334.0,0.08466201]
[1617507918533,7.3056481,57335.0,57334.0,0.03266201]
[1617507918733,7.3056481,57335.0,57334.0,0.02396201]
[1617507918933,7.3056481,57335.0,57289.0,0.09204338]
[1617507918934,7.87389949,57335.0,57289.0,0.09204338]
[1617507919133,5.4658,57334.0,57289.0,0.09204338]
[1617507919334,1.7,57333.0,57286.0,0.50272722]
[1617507919734,1.7,57333.0,57277.0,1.56305449]
[1617507919735,2.7372,57289.0,57283.0,0.50258723]
[1617507919934,0.17093,57289.0,57283.0,0.50258723]
[1617507920335,0.17093,57289.0,57273.0,0.563261]
[1617507920336,2.996,57282.0,57281.0,0.5029116]
[1617507920738,3.10325655,57282.0,57281.0,0.61016815]
[1617507920937,3.10325655,57282.0,57281.0,0.10725655]
[1617507921737,0.10725655,57282.0,57281.0,0.10725655]
[1617507922639,0.10725655,57282.0,57281.0,0.19931835]
[1617507923741,0.10725655,57282.0,57281.0,0.70271685]
[1617507924141,0.10725655,57282.0,57281.0,0.19931835]
[1617507928546,0.10725655,57282.0,57281.0,0.10725655]
[1617507932851,0.10725655,57282.0,57275.0,1.10725655]
[1617507933251,3.2055,57276.0,57275.0,1.10725655]
[1617507934252,3.36999,57276.0,57275.0,1.10725655]
[1617507934853,3.47724655,57276.0,57275.0,1.10725655]
[1617507936154,3.31275655,57276.0,57275.0,1.10725655]
[1617507936355,3.31275655,57276.0,57275.0,1.61063621]
[1617507937156,3.31173362,57276.0,57275.0,1.61063621]
[1617507939558,3.31173362,57276.0,57275.0,1.10725655]
[1617507940161,3.31173362,57276.0,57275.0,1.61242979]
[1617507942862,3.31173362,57276.0,57275.0,0.61242979]